bitfinex/quotes_BTCUSD_20250814
["timestamp","ask_amount","ask_price","bid_price","bid_amount"]
[1755174870130,0.00040142,119260.0,119210.0,0.01147428]
[1755174870355,0.16774919,119230.0,119210.0,0.0004868]
[1755174870623,0.17613634,119230.0,119220.0,0.08272325]
[1755174870833,0.00178401,119200.0,119160.0,0.01442263]
[1755174871009,0.00178401,119190.0,119150.0,0.20416884]
[1755174871278,0.01318467,119180.0,119150.0,0.16089465]
[1755174871505,0.19284155,119160.0,119150.0,0.14504638]
[1755174871721,0.17263556,119160.0,119150.0,1e-08]
[1755174871933,0.19286973,119140.0,119130.0,0.00279852]
[1755174872151,0.025,119110.0,119020.0,0.0283668]
[1755174872372,0.16798252,119060.0,119020.0,0.0283668]
[1755174872590,0.25070577,119060.0,119020.0,0.0283668]
[1755174872810,0.14580887,119030.0,119020.0,0.0082008]
[1755174873025,0.16980887,119030.0,119020.0,0.08293301]
[1755174873241,0.17641494,119050.0,119010.0,0.19471745]
[1755174873451,0.00178401,119020.0,119010.0,0.19772745]
[1755174873667,0.08456726,119020.0,119010.0,0.18953859]
[1755174873894,0.08278325,119020.0,119010.0,0.1460213]
[1755174874099,0.08278325,119020.0,119010.0,0.14331827]
[1755174874310,0.08278325,119020.0,119010.0,0.1090602]
[1755174874530,0.08278325,119020.0,119000.0,0.62254966]
[1755174874531,0.08272325,119010.0,119000.0,0.62254966]
[1755174874773,0.08272325,119010.0,119000.0,0.44037596]
[1755174874998,0.00048561,119050.0,119000.0,0.48055043]
[1755174875209,0.00839842,119070.0,119000.0,0.47713901]
[1755174875421,0.00839842,119070.0,119000.0,0.42469901]
[1755174875652,0.01138382,119050.0,119000.0,0.38419172]
[1755174875872,0.00840053,119040.0,119000.0,0.36814346]
[1755174876105,0.00840124,119030.0,119000.0,0.28294789]
[1755174876320,0.00839912,119060.0,119000.0,0.27993789]
[1755174876547,0.00839912,119060.0,118950.0,0.28824356]
[1755174876548,0.01083008,119020.0,118950.0,0.28824356]
[1755174876758,0.17645781,119010.0,118950.0,0.24845186]
[1755174877006,0.01105132,118960.0,118950.0,0.24047873]
[1755174877228,0.00297,118990.0,118950.0,0.22918584]
[1755174877442,0.00840406,118990.0,118950.0,0.22918584]
[1755174877659,0.008,119040.0,118950.0,0.12038166]
[1755174877882,0.00297,118990.0,118950.0,0.07323484]
[1755174878107,0.00840265,119010.0,118950.0,0.01664285]
[1755174878316,0.00840265,119010.0,118900.0,0.10448]
[1755174878317,0.00297,119000.0,118900.0,0.10124639]
[1755174878544,0.00297,119000.0,118910.0,0.5]
[1755174878764,0.00048532,119010.0,118920.0,0.525]
[1755174878984,0.00048532,119010.0,119000.0,0.000947]
[1755174879201,0.025,118980.0,118920.0,0.09215]
[1755174879409,0.025,118970.0,118930.0,0.05354881]
[1755174879620,0.025,118960.0,118920.0,0.05064976]
[1755174879834,0.02898635,118950.0,118920.0,0.05064976]
[1755174880046,0.02901659,118930.0,118900.0,0.09635117]
[1755174880270,0.0312,118940.0,118900.0,0.02510176]
[1755174880481,0.0062,118920.0,118900.0,0.02510176]
[1755174880754,0.00840406,118990.0,118900.0,0.02510176]
[1755174880755,0.00840406,118990.0,118910.0,0.117495]
[1755174880973,0.00297,118970.0,118900.0,0.02510176]
[1755174881190,0.02461022,118960.0,118910.0,0.00205755]
[1755174881409,0.00672556,118990.0,118920.0,0.00205738]
[1755174881626,0.02522,119020.0,118920.0,0.00205738]
[1755174881627,0.02010929,119020.0,118930.0,0.09512]
[1755174881863,0.01087112,119010.0,118940.0,0.34297]
[1755174882078,0.002,118970.0,118950.0,0.17342]
[1755174882291,0.01087112,119010.0,118970.0,0.34]
[1755174882505,0.01468812,118970.0,118900.0,0.00297]
[1755174882730,0.00297,118960.0,118920.0,0.000753]
[1755174882962,0.17952417,118950.0,118920.0,0.000753]
[1755174883180,0.17952417,118950.0,118870.0,0.00507202]
[1755174883181,0.00297,118940.0,118870.0,0.00804202]
[1755174883391,0.00232354,118930.0,118890.0,0.00297]
[1755174883603,0.17661036,118910.0,118880.0,0.20075282]
[1755174883822,0.00132354,118930.0,118810.0,0.66318309]
[1755174883823,0.16832183,118820.0,118810.0,0.01224409]
[1755174884036,0.16832183,118820.0,118760.0,0.35684361]
[1755174884037,0.16971623,118770.0,118760.0,0.35684361]
[1755174884253,0.16971623,118770.0,118760.0,0.18791915]
[1755174884490,0.16973041,118760.0,118710.0,5.183e-05]
[1755174884718,0.06101347,118760.0,118690.0,0.16850619]
[1755174884917,0.06101347,118760.0,118640.0,0.37129223]
[1755174884918,0.003345,118680.0,118640.0,0.37129223]
[1755174885142,0.00132354,118680.0,118640.0,0.44703539]
[1755174885349,0.01650269,118700.0,118640.0,0.34480011]
[1755174885561,0.1685583,118660.0,118640.0,0.09913745]
[1755174885793,0.1685583,118660.0,118610.0,0.22510641]
[1755174885794,0.17699115,118650.0,118610.0,0.22510641]
[1755174886008,0.17701765,118640.0,118610.0,0.20889025]
[1755174886255,0.17739765,118640.0,118610.0,0.19971642]
[1755174886458,0.15123483,118620.0,118610.0,0.01859786]
[1755174886683,0.15161483,118620.0,118610.0,0.01451867]
[1755174886905,0.00628,118620.0,118600.0,0.10359042]
[1755174887141,0.16861984,118610.0,118600.0,0.08975774]
[1755174887354,0.01921,118610.0,118600.0,0.08935782]
[1755174887575,0.02356374,118610.0,118600.0,0.08935782]
[1755174887788,0.0265308,118610.0,118600.0,0.00939902]
[1755174888006,0.0265308,118610.0,118550.0,0.99188303]
[1755174888007,0.1686625,118580.0,118550.0,0.99188303]
[1755174888222,0.16869095,118560.0,118550.0,0.43967185]
[1755174888434,0.0977178,118560.0,118550.0,0.29446087]
[1755174888647,0.13112924,118560.0,118550.0,0.24293331]
[1755174888863,0.0777178,118560.0,118550.0,0.24293331]
[1755174889074,5.10026907,118560.0,118550.0,0.10782083]
[1755174889292,0.16870518,118550.0,118540.0,1e-08]
[1755174889713,0.16870518,118550.0,118480.0,0.1]
[1755174889714,0.18803492,118550.0,118480.0,0.1]
[1755174889931,0.18803492,118550.0,118460.0,0.545]
[1755174889932,0.16870518,118550.0,118470.0,0.56570977]
[1755174890149,0.01566229,118580.0,118470.0,0.07777166]
[1755174890370,0.17275846,118570.0,118470.0,0.07777166]
[1755174890580,0.00843241,118590.0,118470.0,0.05433383]
[1755174890809,0.0005447,118600.0,118480.0,0.896287]
[1755174891019,0.00048239,118560.0,118490.0,0.476972]
[1755174891231,0.00048239,118560.0,118500.0,0.00297]
[1755174891442,0.00842886,118640.0,118500.0,0.00297]
[1755174891443,0.00842886,118640.0,118550.0,0.01011926]
[1755174891661,0.025,118770.0,118480.0,0.09215]
[1755174891662,1.29091575,118690.0,118560.0,0.00297]
[1755174891876,0.00842672,118670.0,118480.0,0.59087268]
[1755174892101,0.00297,118660.0,118490.0,0.58144593]
[1755174892326,0.00297,118660.0,118480.0,0.09215]
[1755174892327,0.16856378,118650.0,118480.0,0.09215]
[1755174892834,0.00843241,118590.0,118470.0,0.05481622]
[1755174893097,0.01082174,118530.0,118470.0,0.05433383]
[1755174893372,0.00238506,118520.0,118470.0,0.05421949]
[1755174893609,0.00238506,118480.0,118470.0,0.05421949]
[1755174893815,0.4,118520.0,118470.0,0.14636949]
[1755174894035,0.4,118520.0,118470.0,0.05470188]
[1755174894253,0.2,118550.0,118480.0,0.09512]
[1755174894465,0.01575649,118620.0,118490.0,0.50297]
[1755174894678,0.01930165,118650.0,118590.0,0.48793811]
[1755174894899,0.2,118670.0,118600.0,0.00297]
[1755174895127,0.00297,118700.0,118600.0,0.00297]
[1755174895339,0.00417455,118710.0,118600.0,0.00297]
[1755174895553,0.02524665,118710.0,118600.0,0.00297]
[1755174895770,0.20417455,118710.0,118610.0,0.54942092]
[1755174896208,0.17686665,118740.0,118620.0,0.02797]
[1755174896210,0.00842034,118760.0,118620.0,0.00297]
[1755174896437,0.16846361,118720.0,118630.0,0.025]
[1755174896681,0.16846361,118720.0,118540.0,0.025]
[1755174896682,0.0084253,118690.0,118530.0,0.025]
[1755174896921,0.025,118480.0,118470.0,0.54202119]
[1755174897158,0.4,118550.0,118480.0,0.5]
[1755174897382,0.00842886,118640.0,118480.0,0.5]
[1755174897383,0.0084317,118600.0,118500.0,0.54942092]
[1755174897617,0.2,118620.0,118550.0,8.8e-05]
[1755174897860,0.0423907,118700.0,118550.0,8.8e-05]
[1755174897861,0.00312,118670.0,118550.0,8.8e-05]
[1755174898093,0.20360327,118710.0,118580.0,0.025]
[1755174898326,0.20360327,118710.0,118610.0,0.08272325]
[1755174898327,0.08272325,118680.0,118610.0,0.08272325]
[1755174898562,0.00890716,118710.0,118640.0,0.08272325]
[1755174898786,0.08272325,118700.0,118650.0,0.08569325]
[1755174899020,0.00048327,118710.0,118650.0,0.08569325]
[1755174899021,0.08663041,118710.0,118660.0,0.00297]
[1755174899252,0.16854108,118670.0,118660.0,0.2945262]
[1755174899483,0.2,118640.0,118610.0,0.297619]
[1755174899713,0.00842815,118650.0,118580.0,0.00297]
[1755174899956,0.08272325,118640.0,118620.0,0.00297]
[1755174900223,0.00842601,118680.0,118630.0,0.00297]
[1755174900476,0.00843028,118620.0,118550.0,0.00057127]
[1755174900753,0.00312,118670.0,118480.0,0.025]
[1755174900754,0.00843525,118550.0,118480.0,0.02797]
[1755174900979,0.00843383,118570.0,118520.0,0.08272325]
[1755174901197,0.17719048,118520.0,118490.0,0.08272325]
[1755174901412,0.05396692,118540.0,118440.0,0.03297]
[1755174901647,0.05396692,118540.0,118440.0,0.03]
[1755174901648,0.00420049,118540.0,118440.0,0.03]
[1755174901864,0.025,118550.0,118470.0,0.00297]
[1755174902100,0.01231684,118540.0,118490.0,0.34]
[1755174902333,0.08272325,118540.0,118530.0,0.025]
[1755174902532,0.00312,118620.0,118530.0,0.604619]
[1755174902533,0.0076933,118620.0,118530.0,0.604619]
[1755174902778,0.0076933,118650.0,118540.0,0.99866692]
[1755174903049,0.04251895,118730.0,118540.0,0.99866692]
[1755174903050,1.07949745,118740.0,118560.0,0.34]
[1755174903273,0.2,118710.0,118700.0,0.00431695]
[1755174903508,0.16844942,118750.0,118670.0,0.00297]
[1755174903748,0.08272325,118740.0,118680.0,0.08272325]
[1755174903974,0.08272325,118740.0,118690.0,0.00297]
[1755174904203,0.16849199,118700.0,118690.0,0.13363027]
[1755174904434,0.025,118680.0,118530.0,0.54942092]
[1755174904666,0.025,118590.0,118400.0,0.57718352]
[1755174904905,0.0084438,118430.0,118310.0,0.00503738]
[1755174905132,0.02193492,118490.0,118270.0,0.27781295]
[1755174905133,5.11830678,118420.0,118270.0,0.27781295]
[1755174905393,0.02022699,118400.0,118200.0,0.64354394]
[1755174905623,0.025,118210.0,118110.0,0.00727098]
[1755174905848,0.025,118150.0,118120.0,0.5]
[1755174906086,0.02491435,118200.0,118120.0,0.5507271]
[1755174906320,0.00845809,118230.0,118130.0,0.05297]
[1755174906553,0.17763559,118220.0,118140.0,0.00314]
[1755174906769,0.16921891,118200.0,118120.0,0.025283]
[1755174907008,0.17768423,118190.0,118120.0,0.025283]
[1755174907235,0.16923531,118180.0,118120.0,0.025283]
[1755174907467,0.16924935,118170.0,118120.0,0.025283]
[1755174907935,0.17772812,118160.0,118120.0,0.00314]
[1755174908163,0.17773072,118160.0,118130.0,0.00314]
[1755174908394,0.17773072,118160.0,118110.0,0.00727098]
[1755174908395,0.16928098,118150.0,118110.0,0.00727098]
[1755174908607,0.00846453,118140.0,118110.0,0.00727098]
[1755174908872,0.00846453,118140.0,118090.0,0.02647206]
[1755174908873,0.50933367,118110.0,118090.0,0.00109606]
[1755174909103,0.16939103,118070.0,118050.0,0.01590032]
[1755174909341,0.16947716,118010.0,118000.0,0.14750364]
[1755174909576,0.51262716,118010.0,118000.0,0.14750364]
[1755174909797,0.51262716,118010.0,117910.0,0.02439365]
[1755174909798,0.16959213,117930.0,117920.0,0.4746]
[1755174910025,0.17274213,117930.0,117920.0,0.36216958]
[1755174910260,0.16960651,117920.0,117900.0,0.09028538]
[1755174910501,0.16964967,117890.0,117880.0,1e-08]
[1755174910733,0.01685161,117890.0,117880.0,0.08272325]
[1755174910987,0.00963248,117890.0,117830.0,0.00043018]
[1755174911218,0.00848464,117860.0,117830.0,0.00043018]
[1755174911458,0.02500405,117850.0,117830.0,0.00043018]
[1755174911683,0.02500405,117850.0,117810.0,0.01038446]
[1755174911684,0.16974456,117830.0,117810.0,0.00658446]
[1755174911911,0.17820078,117850.0,117810.0,0.00658446]
[1755174912143,4.935729,117820.0,117810.0,0.00658446]
[1755174912370,4.935729,117820.0,117730.0,0.26935262]
[1755174912371,0.01468752,117820.0,117730.0,0.26935262]
[1755174912608,0.16983104,117770.0,117730.0,0.26935262]
[1755174912872,0.1698521,117750.0,117730.0,0.26935262]
[1755174913186,5.68452879,117760.0,117680.0,0.15742171]
[1755174913187,0.01469184,117760.0,117680.0,0.15742171]
[1755174913422,0.16991758,117710.0,117700.0,0.08272325]
[1755174913640,0.16991758,117710.0,117680.0,0.15742171]
[1755174913641,0.5,117700.0,117680.0,0.1492913]
[1755174913858,0.1699609,117680.0,117610.0,5.26e-05]
[1755174914079,0.1699609,117680.0,117500.0,0.17758883]
[1755174914298,5.81110178,117670.0,117500.0,0.10507742]
[1755174914525,0.00849762,117680.0,117550.0,0.00314]
[1755174914740,5.00314,117670.0,117550.0,0.00850701]
[1755174914952,0.00314,117670.0,117590.0,0.17008181]
[1755174915196,0.02221258,117600.0,117580.0,0.17008474]
[1755174915400,0.08788,117710.0,117550.0,0.00850701]
[1755174915401,0.00849762,117680.0,117550.0,0.00850701]
[1755174915631,0.00314,117690.0,117580.0,0.00796919]
[1755174915835,0.00314,117690.0,117560.0,0.025]
[1755174916044,5.5062,117680.0,117550.0,0.00850701]
[1755174916253,0.1014847,117630.0,117550.0,0.00850701]
[1755174916497,0.0539847,117630.0,117580.0,0.08272325]
[1755174916714,0.0539847,117630.0,117620.0,0.08272325]
[1755174916954,0.0310847,117630.0,117620.0,0.00314]
[1755174917383,0.0310847,117630.0,117550.0,0.00850701]
[1755174917384,0.0310847,117630.0,117580.0,0.00314]
[1755174917605,0.08272325,117620.0,117590.0,0.08586325]
[1755174917853,1.3413,117700.0,117400.0,0.5]
[1755174918068,1.3413,117700.0,117560.0,7e-05]
[1755174918291,0.08788,117710.0,117600.0,0.00296954]
[1755174918292,0.08272325,117640.0,117600.0,0.00296954]
[1755174918507,0.07922326,117630.0,117470.0,0.02078034]
[1755174918720,0.02551646,117690.0,117610.0,0.08272325]
[1755174918938,0.02551646,117690.0,117600.0,0.06619947]
[1755174918939,0.01841502,117620.0,117600.0,0.06619947]
[1755174919163,0.00849834,117670.0,117490.0,0.11441544]
[1755174919164,0.05,117660.0,117490.0,0.11441544]
[1755174919377,0.00733875,117690.0,117500.0,0.63568273]
[1755174919378,0.00418875,117690.0,117500.0,0.63568273]
[1755174919597,0.00850051,117640.0,117510.0,0.164562]
[1755174919815,0.05315,117670.0,117510.0,0.00314]
[1755174920046,0.08272325,117570.0,117520.0,0.00314]
[1755174920264,0.02551,117670.0,117520.0,0.08586325]
[1755174920500,0.05362749,117770.0,117520.0,0.08586325]
[1755174920501,0.00047749,117770.0,117570.0,0.02611201]
[1755174920721,0.00047749,117770.0,117590.0,0.34]
[1755174920973,0.08272325,117750.0,117660.0,0.08272325]
[1755174921196,0.00047749,117770.0,117680.0,0.34]
[1755174921197,0.008485,117760.0,117680.0,0.34]
[1755174921418,0.00315,117780.0,117680.0,0.00302627]
[1755174921646,0.17405875,117860.0,117690.0,0.127031]
[1755174921918,0.17405875,117860.0,117580.0,0.84]
[1755174921919,0.0062,117870.0,117730.0,0.025]
[1755174922147,0.0062,117870.0,117760.0,0.025]
[1755174922391,0.0062,117870.0,117740.0,0.34314]
[1755174922392,0.0205548,117890.0,117840.0,0.025]
[1755174922613,0.025524,117860.0,117780.0,0.84]
[1755174922838,0.0205548,117890.0,117840.0,0.08281141]
[1755174923084,0.00291952,117880.0,117840.0,0.02508816]
[1755174923354,0.00431695,117990.0,117840.0,0.02508816]
[1755174923355,0.00458575,117990.0,117850.0,0.00314]
[1755174923598,0.025526,117880.0,117840.0,8.816e-05]
[1755174923823,0.025526,117880.0,117850.0,0.34]
[1755174924046,0.025526,117880.0,117800.0,0.025]
[1755174924047,0.14435623,117820.0,117800.0,0.2966725]
[1755174924266,0.04673661,117970.0,117760.0,0.00314]
[1755174924481,0.02967995,117870.0,117800.0,0.00314]
[1755174924718,0.028647,117870.0,117700.0,0.00328842]
[1755174924928,0.028647,117870.0,117680.0,0.11551]
[1755174924929,0.02171158,117840.0,117680.0,0.11551]
[1755174925161,0.02171158,117840.0,117700.0,0.00328842]
[1755174925403,0.00418306,117870.0,117710.0,0.206562]
[1755174925658,0.00315,117940.0,117820.0,0.08272325]
[1755174925888,0.00315,117940.0,117770.0,0.00328842]
[1755174926103,0.02486158,117940.0,117780.0,0.189978]
[1755174926324,0.00173721,117790.0,117780.0,0.189978]
[1755174926549,0.00315,117940.0,117780.0,0.32788549]
[1755174926777,0.00418482,117960.0,117800.0,0.34]
[1755174927038,0.0001267,117940.0,117810.0,0.115472]
[1755174927271,0.0001267,117940.0,117890.0,0.00848248]
[1755174927498,0.0001267,117940.0,117930.0,0.16959213]
[1755174927723,0.0001267,117940.0,117930.0,0.08272325]
[1755174928177,0.025,117990.0,117930.0,0.05758015]
[1755174928419,0.00315,117970.0,117940.0,0.08272325]
[1755174928690,0.00315,117960.0,117930.0,0.17807135]
[1755174928891,0.00315,117960.0,117930.0,0.1780706]
[1755174929111,1.345485,118000.0,117930.0,0.1780706]
[1755174929112,0.00315,117990.0,117940.0,0.51804943]
[1755174929337,0.00315,117990.0,117970.0,0.34]
[1755174929561,1.3413,118000.0,117930.0,0.17801791]
[1755174929781,1.3413,118000.0,117970.0,0.08272325]
[1755174930229,1.3413,118000.0,117990.0,0.08272325]
[1755174930445,0.20007,118050.0,117990.0,0.08272325]
[1755174930657,0.02144999,118050.0,118020.0,0.08272325]
[1755174930923,7e-05,118050.0,118030.0,0.08272325]
[1755174931132,0.2,118100.0,118050.0,0.00847098]
[1755174931338,0.0355441,118120.0,118070.0,0.16937167]
[1755174931552,0.0355441,118120.0,118080.0,0.00846883]
[1755174931764,0.0355441,118120.0,118080.0,0.18097257]
[1755174931981,0.0355441,118120.0,118090.0,0.1809636]
[1755174932205,0.0355441,118120.0,118110.0,0.08272325]
[1755174932206,0.02505159,118120.0,118110.0,0.08272325]
[1755174932669,7e-05,118210.0,118130.0,0.16927634]
[1755174932884,0.02998029,118210.0,118130.0,0.00846525]
[1755174933096,0.02998029,118210.0,118120.0,0.17773437]
[1755174933097,0.17768587,118190.0,118110.0,0.00214]
[1755174933314,0.025,118190.0,118120.0,0.00846596]
[1755174933531,0.00852952,118210.0,118130.0,0.16930427]
[1755174933770,0.00846238,118170.0,118130.0,0.00213]
[1755174933993,0.00846023,118200.0,118090.0,0.00314]
[1755174934210,0.17961066,118170.0,118130.0,0.08272325]
[1755174934427,0.0084631,118160.0,118130.0,0.08272325]
[1755174934648,0.00846166,118180.0,118130.0,0.08480325]
[1755174934900,0.16925233,118170.0,118100.0,0.0021]
[1755174935121,0.08272325,118200.0,118110.0,0.16933239]
[1755174935339,0.08272325,118200.0,118080.0,0.00846883]
[1755174935340,0.09118348,118200.0,118120.0,0.00208]
[1755174935552,0.08272325,118200.0,118130.0,0.1693044]
[1755174935776,0.02940094,118210.0,118150.0,0.08272325]
[1755174936022,7e-05,118210.0,118170.0,0.08272325]
[1755174936229,0.2,118300.0,118160.0,0.17212533]
[1755174936230,0.177516,118320.0,118210.0,0.00845952]
[1755174936445,0.00844951,118350.0,118260.0,0.16911569]
[1755174936446,0.17749088,118350.0,118260.0,0.16911569]
[1755174936662,0.00845022,118340.0,118260.0,0.00287]
[1755174936873,0.17749088,118350.0,118270.0,0.00845522]
[1755174937084,0.00845022,118340.0,118260.0,0.00287]
[1755174937297,0.0469929,118360.0,118310.0,0.08272325]
[1755174937515,0.08572325,118350.0,118310.0,0.08272325]
[1755174937739,0.01145022,118340.0,118260.0,0.00287]
[1755174937965,0.16903313,118320.0,118310.0,0.08272325]
[1755174938181,0.17746978,118330.0,118310.0,0.08272325]
[1755174938182,0.20245687,118340.0,118310.0,0.08272325]
[1755174938378,0.01714249,118350.0,118310.0,0.08272325]
[1755174938591,0.0439929,118360.0,118320.0,0.08272325]
[1755174938843,0.0439929,118360.0,118270.0,0.00845522]
[1755174938844,0.0355441,118360.0,118330.0,0.08277325]
[1755174939052,0.0355441,118360.0,118350.0,0.08272325]
[1755174939258,7e-05,118370.0,118350.0,0.08111388]
[1755174939459,7e-05,118370.0,118360.0,0.42280325]
[1755174939676,7e-05,118370.0,118360.0,0.06659197]
[1755174939886,7e-05,118370.0,118360.0,0.06771197]
[1755174940138,0.00307,118370.0,118290.0,0.00069]
[1755174940346,7e-05,118370.0,118340.0,0.00845022]
[1755174940568,7e-05,118370.0,118330.0,0.34]
[1755174940829,7e-05,118370.0,118350.0,0.0011]
[1755174941047,7e-05,118370.0,118310.0,0.17746921]
[1755174941048,7e-05,118370.0,118360.0,0.00111]
[1755174941505,7e-05,118370.0,118360.0,0.08383325]
[1755174941732,7e-05,118370.0,118360.0,0.08272325]
[1755174941952,0.025,118430.0,118360.0,0.09437205]
[1755174942180,0.025,118430.0,118390.0,0.08272325]
[1755174942437,0.025,118430.0,118420.0,0.08272325]
[1755174942438,0.19687612,118430.0,118420.0,0.08272325]
[1755174942647,0.00844594,118400.0,118320.0,0.17743464]
[1755174942860,0.00844808,118370.0,118320.0,0.00114]
[1755174943077,0.00844737,118380.0,118350.0,0.08272325]
[1755174943288,0.16889555,118420.0,118370.0,0.08272325]
[1755174943528,0.19389555,118420.0,118390.0,0.08272325]
[1755174943772,0.0084438,118430.0,118290.0,0.025]
[1755174943773,0.025,118390.0,118290.0,0.025]
[1755174944101,0.00844451,118420.0,118310.0,0.17220632]
[1755174944314,0.20422357,118500.0,118390.0,0.00844665]
[1755174944529,0.025,118520.0,118450.0,0.00844238]
[1755174944801,0.00127886,118500.0,118490.0,0.18132634]
[1755174945041,0.02481259,118550.0,118500.0,0.00843881]
[1755174945042,0.02501259,118550.0,118500.0,0.00843881]
[1755174945272,0.01195504,118550.0,118530.0,0.34]
[1755174945512,0.0355441,118590.0,118540.0,0.00843597]
[1755174945748,0.0355441,118590.0,118550.0,0.33980008]
[1755174945994,0.039,118630.0,118580.0,0.03524951]
[1755174946228,0.02244008,118630.0,118620.0,0.03559361]
[1755174946428,0.02244008,118630.0,118560.0,0.177097]
[1755174946695,0.02244008,118630.0,118550.0,0.00843525]
[1755174946932,0.02244008,118630.0,118570.0,0.00843383]
[1755174947165,0.02244008,118630.0,118560.0,0.30300044]
[1755174947384,0.02244008,118630.0,118590.0,0.16864352]
[1755174947649,0.02244008,118630.0,118600.0,0.34]
[1755174947882,0.02244008,118630.0,118590.0,0.2945642]
[1755174948327,0.00842672,118670.0,118570.0,0.00843383]
[1755174948537,0.00843099,118610.0,118600.0,0.08272325]
[1755174948750,0.17705155,118610.0,118600.0,0.08272325]
[1755174948967,0.00842957,118630.0,118570.0,0.2947303]
[1755174948968,0.003,118630.0,118570.0,0.2947303]
[1755174949199,0.17159208,118630.0,118530.0,0.17716723]
[1755174949425,0.00842886,118640.0,118520.0,0.17717288]
[1755174949647,0.01142815,118650.0,118600.0,0.08272325]
[1755174949867,1.34137,118690.0,118630.0,0.08272325]
[1755174950086,7e-05,118690.0,118680.0,0.08272325]
[1755174950305,0.0084953,118690.0,118680.0,0.08272325]
[1755174950522,0.16857938,118640.0,118600.0,0.2944904]
[1755174950739,0.17709764,118580.0,118560.0,0.294677]
[1755174950954,0.17709764,118580.0,118460.0,0.34622326]
[1755174950955,0.00843597,118540.0,118460.0,0.34622326]
[1755174951170,0.01574801,118600.0,118540.0,0.00843597]
[1755174951406,0.00842957,118630.0,118590.0,0.08272325]
[1755174951619,0.17702312,118630.0,118600.0,0.08272325]
[1755174951849,0.16861511,118620.0,118600.0,0.08272325]
[1755174952062,0.00842815,118650.0,118600.0,0.08272325]
[1755174952290,0.17699689,118680.0,118600.0,0.08272325]
[1755174952291,0.04560726,118670.0,118620.0,0.08272325]
[1755174952504,0.17584863,118690.0,118650.0,0.08272325]
[1755174952505,0.0084953,118690.0,118650.0,0.08272325]
[1755174952744,0.17700625,118690.0,118650.0,0.08272325]
[1755174952967,7e-05,118690.0,118650.0,0.08272325]
[1755174953196,7e-05,118690.0,118670.0,0.08272325]
[1755174953414,7e-05,118690.0,118680.0,0.08272325]
[1755174953634,7e-05,118690.0,118680.0,0.42272325]
[1755174953853,7e-05,118690.0,118680.0,0.07464303]
[1755174954065,0.16857619,118690.0,118680.0,0.07464303]
[1755174954281,0.1703124,118690.0,118610.0,0.17705032]
[1755174954507,0.1703124,118690.0,118600.0,0.50859272]
[1755174954508,0.16850619,118690.0,118680.0,0.08272325]
[1755174954726,0.16856144,118660.0,118620.0,0.2945711]
[1755174954938,0.01744902,118640.0,118580.0,0.2946262]
[1755174955179,0.17698099,118710.0,118630.0,0.08272325]
[1755174955400,0.16850475,118720.0,118640.0,0.50857705]
[1755174955624,0.1684913,118740.0,118660.0,0.34]
[1755174955843,6e-05,118720.0,118660.0,0.47142619]
[1755174956060,6e-05,118720.0,118670.0,0.50860265]
[1755174956282,0.16852361,118720.0,118710.0,0.08272325]
[1755174956502,0.16852361,118720.0,118680.0,0.08272325]
[1755174956503,0.16850619,118690.0,118680.0,0.08272325]
[1755174956728,0.19439554,118680.0,118610.0,0.00032]
[1755174956951,0.01744902,118650.0,118620.0,0.2945918]
[1755174957167,0.02588001,118610.0,118560.0,0.2946991]
[1755174957390,0.17704092,118620.0,118540.0,0.00843597]
[1755174957616,0.17704092,118620.0,118530.0,9e-05]
[1755174957617,0.16866526,118580.0,118530.0,9e-05]
[1755174957869,0.17711266,118570.0,118540.0,0.2947846]
[1755174958092,0.17709838,118580.0,118540.0,0.2947846]
[1755174958304,0.18009189,118620.0,118540.0,0.2947846]
[1755174958305,0.00842815,118650.0,118570.0,0.08272325]
[1755174958529,0.16860492,118640.0,118630.0,0.08272325]
[1755174958742,0.42573912,118640.0,118630.0,0.08272325]
[1755174958957,0.42573912,118640.0,118530.0,0.00041]
[1755174958958,0.16866386,118580.0,118530.0,0.00041]
[1755174959188,0.16865783,118620.0,118550.0,0.2947739]
[1755174959411,0.01744902,118600.0,118540.0,0.0032]
[1755174959654,0.01744902,118610.0,118480.0,0.08527006]
[1755174959655,0.17712639,118560.0,118480.0,0.08527006]
[1755174959880,0.16866364,118580.0,118490.0,0.1772176]
[1755174960098,0.00843525,118550.0,118480.0,0.00302]
[1755174960320,0.01744902,118550.0,118480.0,0.1802645]
[1755174960558,0.01558663,118610.0,118540.0,0.08272325]
[1755174960779,0.02401762,118610.0,118580.0,0.08272325]
[1755174961010,0.01558663,118610.0,118590.0,0.0032]
[1755174961232,0.01558663,118610.0,118600.0,0.08592325]
[1755174961447,0.01558663,118610.0,118600.0,0.08272325]
[1755174961660,0.19246691,118610.0,118600.0,0.08272325]
[1755174961893,0.51161984,118610.0,118600.0,0.08272325]
[1755174962109,0.51161984,118610.0,118580.0,0.5]
[1755174962110,0.16864828,118590.0,118580.0,0.48511927]
[1755174962322,0.5290973,118590.0,118580.0,0.4813632]
[1755174962541,0.86439802,118590.0,118580.0,0.06697097]
[1755174962774,0.01744902,118520.0,118480.0,0.0032]
[1755174963025,0.27940118,118560.0,118510.0,0.01149117]
[1755174963258,0.01744902,118550.0,118540.0,0.01151157]
[1755174963487,0.42114688,118550.0,118540.0,0.52342086]
[1755174963723,0.14946688,118550.0,118540.0,0.35471157]
[1755174963954,0.06483276,118600.0,118590.0,0.50864828]
[1755174964183,0.06483276,118600.0,118590.0,1.18920584]
[1755174964184,0.07047856,118600.0,118590.0,1.18920584]
[1755174964407,0.07047856,118600.0,118590.0,0.52028584]
[1755174964643,0.06766637,118600.0,118590.0,1.53133184]
[1755174964903,0.00496,118620.0,118610.0,0.50861984]
[1755174965133,0.00496,118620.0,118610.0,0.75943884]
[1755174965340,0.00496,118620.0,118610.0,0.53361984]
[1755174965572,0.00496,118620.0,118610.0,0.79137084]
[1755174965786,0.00496,118620.0,118610.0,0.76637084]
[1755174966014,0.00496,118620.0,118610.0,0.77731419]
[1755174966253,0.06393667,118690.0,118680.0,0.34]
[1755174966496,0.05461654,118690.0,118680.0,0.50852039]
[1755174966988,0.05461654,118690.0,118660.0,0.34545567]
[1755174967354,0.18010211,118750.0,118680.0,0.08272325]
[1755174967561,0.17344337,118710.0,118680.0,0.07419284]
[1755174967781,0.17693149,118690.0,118660.0,0.16848]
[1755174968005,0.067465,118670.0,118590.0,0.025304]
[1755174968234,0.19441053,118670.0,118660.0,0.08272325]
[1755174968446,0.19441053,118670.0,118560.0,0.17704511]
[1755174968447,0.16856819,118660.0,118570.0,0.16867524]
[1755174968676,0.01744902,118630.0,118570.0,0.00843383]
[1755174969015,0.01744902,118630.0,118610.0,0.10799725]
[1755174969016,0.16859392,118630.0,118610.0,0.10799725]
[1755174969129,0.17696151,118670.0,118610.0,0.10799725]